[Event "Live Chess"]
[Site "Chess.com"]
[Date "2010.12.05"]
[Round "-"]
[White "subterraneous"]
[Black "hipposcottimus"]
[Result "1/2-1/2"]
[CurrentPosition "r4r1k/p1pq2np/1p1p1p1N/3Pp1p1/4P1PQ/1PN4R/P1n2P1P/R5K1 w - -"]
[Timezone "UTC"]
[ECO "C66"]
[ECOUrl "https://www.chess.com/openings/Ruy-Lopez-Opening-Berlin-Improved-Steinitz-Defense-5.Re1-Bd7"]
[UTCDate "2010.12.05"]
[UTCTime "07:00:24"]
[WhiteElo "1530"]
[BlackElo "1581"]
[TimeControl "600+10"]
[Termination "Game drawn by repetition"]
[StartTime "07:00:24"]
[EndDate "2010.12.05"]
[EndTime "07:12:59"]
[Link "https://www.chess.com/game/live/74199254"]

1. e4 {[%clk 0:10:00]} 1... e5 {[%clk 0:10:00]} 2. Nf3 {[%clk 0:10:08.3]} 2... Nc6 {[%clk 0:10:07.8]} 3. Bb5 {[%clk 0:10:15.7]} 3... Nf6 {[%clk 0:10:16.9]} 4. O-O {[%clk 0:10:16.4]} 4... d6 {[%clk 0:10:24.1]} 5. Re1 {[%clk 0:10:15]} 5... Bd7 {[%clk 0:10:29.4]} 6. d4 {[%clk 0:09:35.3]} 6... Qe7 {[%clk 0:10:27.1]} 7. d5 {[%clk 0:09:35.8]} 7... Na5 {[%clk 0:10:27.4]} 8. Bxd7+ {[%clk 0:09:39.3]} 8... Qxd7 {[%clk 0:10:33.1]} 9. Nc3 {[%clk 0:09:45.1]} 9... b6 {[%clk 0:10:36.7]} 10. Bg5 {[%clk 0:09:47.9]} 10... Be7 {[%clk 0:10:44.4]} 11. Qd2 {[%clk 0:09:54.6]} 11... O-O {[%clk 0:10:50.8]} 12. Nh4 {[%clk 0:09:04]} 12... Nc4 {[%clk 0:10:44.8]} 13. Qc1 {[%clk 0:09:00.7]} 13... Nh5 {[%clk 0:10:37.9]} 14. Bxe7 {[%clk 0:09:01.7]} 14... Qxe7 {[%clk 0:10:46.4]} 15. Nf5 {[%clk 0:09:08.1]} 15... Qd7 {[%clk 0:10:07]} 16. Qg5 {[%clk 0:09:08.9]} 16... g6 {[%clk 0:09:33.6]} 17. g4 {[%clk 0:09:00.1]} 17... Ng7 {[%clk 0:09:33.9]} 18. Nh6+ {[%clk 0:07:10]} 18... Kh8 {[%clk 0:09:35.8]} 19. b3 {[%clk 0:07:13.5]} 19... Na3 {[%clk 0:09:42.7]} 20. Re3 {[%clk 0:07:14]} 20... Nxc2 {[%clk 0:09:50.5]} 21. Rh3 {[%clk 0:07:20.5]} 21... f6 {[%clk 0:09:12.2]} 22. Qh4 {[%clk 0:07:01.5]} 22... g5 {[%clk 0:09:13.1]} 23. Nf7+ {[%clk 0:06:22.1]} 23... Kg8 {[%clk 0:09:10.6]} 24. Nh6+ {[%clk 0:06:30]} 24... Kh8 {[%clk 0:09:15.9]} 25. Nf7+ {[%clk 0:06:38.6]} 25... Kg8 {[%clk 0:09:22.5]} 26. Nh6+ {[%clk 0:06:47.2]} 26... Kh8 {[%clk 0:09:31.6]} 1/2-1/2

[Event "Live Chess"]
[Site "Chess.com"]
[Date "2010.12.05"]
[Round "-"]
[White "Swarabhaskara"]
[Black "hipposcottimus"]
[Result "1-0"]
[CurrentPosition "1r3rk1/pbp2p1p/1p3qp1/8/5BB1/3P3Q/PPP2R1K/RN6 b - -"]
[Timezone "UTC"]
[ECO "C30"]
[ECOUrl "https://www.chess.com/openings/Kings-Gambit-Declined-Queens-Knight-Defense-3.Nf3"]
[UTCDate "2010.12.05"]
[UTCTime "06:46:45"]
[WhiteElo "1649"]
[BlackElo "1548"]
[TimeControl "60"]
[Termination "Swarabhaskara won on time"]
[StartTime "06:46:45"]
[EndDate "2010.12.05"]
[EndTime "06:48:36"]
[Link "https://www.chess.com/game/live/74196641"]

1. e4 {[%clk 0:01:00]} 1... e5 {[%clk 0:01:00]} 2. f4 {[%clk 0:00:58.9]} 2... Nc6 {[%clk 0:00:59.6]} 3. Nf3 {[%clk 0:00:58.9]} 3... d5 {[%clk 0:00:58.8]} 4. exd5 {[%clk 0:00:54.3]} 4... Qxd5 {[%clk 0:00:57.8]} 5. d3 {[%clk 0:00:51.8]} 5... Nf6 {[%clk 0:00:51.1]} 6. fxe5 {[%clk 0:00:49.4]} 6... Nxe5 {[%clk 0:00:45.1]} 7. Be2 {[%clk 0:00:48.8]} 7... Bd6 {[%clk 0:00:29.4]} 8. O-O {[%clk 0:00:46.4]} 8... O-O {[%clk 0:00:26.8]} 9. Nxe5 {[%clk 0:00:45]} 9... Bxe5 {[%clk 0:00:25.3]} 10. Bf3 {[%clk 0:00:42.8]} 10... Qd6 {[%clk 0:00:23.3]} 11. g3 {[%clk 0:00:36.8]} 11... Nh5 {[%clk 0:00:22.3]} 12. Bxh5 {[%clk 0:00:34.1]} 12... Bxg3 {[%clk 0:00:21.3]} 13. Qf3 {[%clk 0:00:27]} 13... Bxh2+ {[%clk 0:00:19.5]} 14. Kh1 {[%clk 0:00:26]} 14... b6 {[%clk 0:00:15.7]} 15. Bf4 {[%clk 0:00:24.9]} 15... Qf6 {[%clk 0:00:05.8]} 16. Kxh2 {[%clk 0:00:23.2]} 16... g6 {[%clk 0:00:02.9]} 17. Bg4 {[%clk 0:00:21.4]} 17... Bb7 {[%clk 0:00:00.9]} 18. Qh3 {[%clk 0:00:19.9]} 18... Rab8 {[%clk 0:00:00.8]} 19. Rf2 {[%clk 0:00:18.4]} 1-0

[Event "Live Chess"]
[Site "Chess.com"]
[Date "2010.12.05"]
[Round "-"]
[White "hipposcottimus"]
[Black "HewMatt"]
[Result "1-0"]
[CurrentPosition "8/8/8/8/5R2/5k2/1P5P/3RQ2K b - -"]
[Timezone "UTC"]
[ECO "B10"]
[ECOUrl "https://www.chess.com/openings/Caro-Kann-Defense-2.Nf3"]
[UTCDate "2010.12.05"]
[UTCTime "05:00:10"]
[WhiteElo "1555"]
[BlackElo "1463"]
[TimeControl "60"]
[Termination "hipposcottimus won on time"]
[StartTime "05:00:10"]
[EndDate "2010.12.05"]
[EndTime "05:02:18"]
[Link "https://www.chess.com/game/live/74176514"]

1. e4 {[%clk 0:01:00]} 1... c6 {[%clk 0:01:00]} 2. Nf3 {[%clk 0:00:59.5]} 2... a5 {[%clk 0:00:59.3]} 3. e5 {[%clk 0:00:58.8]} 3... d5 {[%clk 0:00:57.8]} 4. d4 {[%clk 0:00:58.5]} 4... e6 {[%clk 0:00:57.1]} 5. c4 {[%clk 0:00:58.2]} 5... b6 {[%clk 0:00:55.9]} 6. Nc3 {[%clk 0:00:56.4]} 6... dxc4 {[%clk 0:00:54.6]} 7. Bxc4 {[%clk 0:00:54.4]} 7... b5 {[%clk 0:00:52.9]} 8. Be2 {[%clk 0:00:54]} 8... b4 {[%clk 0:00:51.9]} 9. Na4 {[%clk 0:00:51.9]} 9... Bd7 {[%clk 0:00:50.4]} 10. Nc5 {[%clk 0:00:51.7]} 10... Bxc5 {[%clk 0:00:48.3]} 11. dxc5 {[%clk 0:00:51.4]} 11... Ne7 {[%clk 0:00:47.3]} 12. Bg5 {[%clk 0:00:50.1]} 12... h6 {[%clk 0:00:44.9]} 13. Bh4 {[%clk 0:00:48.4]} 13... g5 {[%clk 0:00:43.3]} 14. Nxg5 {[%clk 0:00:47.6]} 14... hxg5 {[%clk 0:00:41.8]} 15. Bxg5 {[%clk 0:00:46.8]} 15... Rg8 {[%clk 0:00:39.9]} 16. Bf6 {[%clk 0:00:46.2]} 16... Rxg2 {[%clk 0:00:37.8]} 17. Bf3 {[%clk 0:00:45.4]} 17... Rg8 {[%clk 0:00:35.7]} 18. Bg4 {[%clk 0:00:42.7]} 18... Na6 {[%clk 0:00:33.5]} 19. O-O {[%clk 0:00:42.2]} 19... Nxc5 {[%clk 0:00:28.3]} 20. Kh1 {[%clk 0:00:41.9]} 20... Ne4 {[%clk 0:00:26.7]} 21. Rg1 {[%clk 0:00:41.4]} 21... Nxf6 {[%clk 0:00:25.2]} 22. exf6 {[%clk 0:00:38]} 22... e5 {[%clk 0:00:24.3]} 23. fxe7 {[%clk 0:00:36.6]} 23... Qxe7 {[%clk 0:00:22]} 24. Bxd7+ {[%clk 0:00:34.7]} 24... Qxd7 {[%clk 0:00:21]} 25. Rxg8+ {[%clk 0:00:34.3]} 25... Ke7 {[%clk 0:00:17.9]} 26. Rxa8 {[%clk 0:00:34]} 26... Qxd1+ {[%clk 0:00:16.8]} 27. Rxd1 {[%clk 0:00:32.1]} 27... Kf6 {[%clk 0:00:15.6]} 28. Rxa5 {[%clk 0:00:31.6]} 28... Kf5 {[%clk 0:00:15.3]} 29. Ra6 {[%clk 0:00:30.7]} 29... Kf4 {[%clk 0:00:14.6]} 30. Rxc6 {[%clk 0:00:30.3]} 30... e4 {[%clk 0:00:14.2]} 31. Rc7 {[%clk 0:00:30]} 31... Kf3 {[%clk 0:00:13.8]} 32. Rxf7+ {[%clk 0:00:28.4]} 32... Ke2 {[%clk 0:00:11.7]} 33. Rfd7 {[%clk 0:00:24.7]} 33... Kf3 {[%clk 0:00:11]} 34. R7d4 {[%clk 0:00:23.9]} 34... Kf4 {[%clk 0:00:08.6]} 35. Rxb4 {[%clk 0:00:22.9]} 35... Ke5 {[%clk 0:00:08]} 36. a4 {[%clk 0:00:21.9]} 36... Kf4 {[%clk 0:00:07.6]} 37. a5 {[%clk 0:00:21.2]} 37... Kf3 {[%clk 0:00:07.2]} 38. a6 {[%clk 0:00:20.6]} 38... Kxf2 {[%clk 0:00:06.8]} 39. a7 {[%clk 0:00:20.3]} 39... Kf3 {[%clk 0:00:06.3]} 40. a8=Q {[%clk 0:00:18.6]} 40... Ke3 {[%clk 0:00:05.1]} 41. Qxe4+ {[%clk 0:00:18]} 41... Kf2 {[%clk 0:00:02.3]} 42. Qe1+ {[%clk 0:00:14]} 42... Kf3 {[%clk 0:00:01.3]} 43. Rf4+ {[%clk 0:00:12.9]} 1-0

[Event "Live Chess"]
[Site "Chess.com"]
[Date "2010.12.05"]
[Round "-"]
[White "Damavand"]
[Black "hipposcottimus"]
[Result "1-0"]
[CurrentPosition "2Q2rk1/3N2pp/8/3p2q1/3Pnp2/4PB2/5PPP/5RK1 w - -"]
[Timezone "UTC"]
[ECO "D10"]
[ECOUrl "https://www.chess.com/openings/Slav-Defense-Exchange-Variation-3...cxd5-4.Nf3"]
[UTCDate "2010.12.05"]
[UTCTime "04:57:00"]
[WhiteElo "1527"]
[BlackElo "1549"]
[TimeControl "60"]
[Termination "Damavand won by resignation"]
[StartTime "04:57:00"]
[EndDate "2010.12.05"]
[EndTime "04:58:52"]
[Link "https://www.chess.com/game/live/74175922"]

1. d4 {[%clk 0:01:00]} 1... d5 {[%clk 0:01:00]} 2. c4 {[%clk 0:00:58.2]} 2... c6 {[%clk 0:00:59.7]} 3. cxd5 {[%clk 0:00:56.8]} 3... cxd5 {[%clk 0:00:58.4]} 4. Nf3 {[%clk 0:00:55.1]} 4... Nd7 {[%clk 0:00:58.1]} 5. Nc3 {[%clk 0:00:53.9]} 5... Ngf6 {[%clk 0:00:57.8]} 6. Bg5 {[%clk 0:00:53.2]} 6... e6 {[%clk 0:00:57.3]} 7. Bxf6 {[%clk 0:00:52.5]} 7... Qxf6 {[%clk 0:00:56.8]} 8. e3 {[%clk 0:00:50.5]} 8... Bb4 {[%clk 0:00:56.3]} 9. Bb5 {[%clk 0:00:49]} 9... O-O {[%clk 0:00:53.1]} 10. a3 {[%clk 0:00:46.6]} 10... Bxc3+ {[%clk 0:00:50.2]} 11. bxc3 {[%clk 0:00:45.4]} 11... Nb6 {[%clk 0:00:49.9]} 12. Be2 {[%clk 0:00:42.9]} 12... a6 {[%clk 0:00:49.7]} 13. Qb3 {[%clk 0:00:40.2]} 13... Nd7 {[%clk 0:00:48.9]} 14. O-O {[%clk 0:00:36.5]} 14... b5 {[%clk 0:00:48.5]} 15. a4 {[%clk 0:00:34]} 15... Bb7 {[%clk 0:00:47.6]} 16. axb5 {[%clk 0:00:32.4]} 16... e5 {[%clk 0:00:45]} 17. bxa6 {[%clk 0:00:31]} 17... Bxa6 {[%clk 0:00:42.2]} 18. Rxa6 {[%clk 0:00:28.6]} 18... Rxa6 {[%clk 0:00:40.1]} 19. Bxa6 {[%clk 0:00:28.6]} 19... exd4 {[%clk 0:00:38.1]} 20. cxd4 {[%clk 0:00:27.1]} 20... Qg6 {[%clk 0:00:37.6]} 21. Bd3 {[%clk 0:00:24.4]} 21... Qh5 {[%clk 0:00:35.5]} 22. Qc2 {[%clk 0:00:22.5]} 22... Nf6 {[%clk 0:00:35.1]} 23. Be2 {[%clk 0:00:20.8]} 23... Qg5 {[%clk 0:00:33]} 24. Ne5 {[%clk 0:00:18.8]} 24... Ne4 {[%clk 0:00:32.1]} 25. Bf3 {[%clk 0:00:13.6]} 25... f6 {[%clk 0:00:31.7]} 26. Ng4 {[%clk 0:00:10.3]} 26... f5 {[%clk 0:00:29.4]} 27. Ne5 {[%clk 0:00:08.5]} 27... f4 {[%clk 0:00:26.6]} 28. Nd7 {[%clk 0:00:06.1]} 28... Rf7 {[%clk 0:00:24.8]} 29. Qc8+ {[%clk 0:00:04.4]} 29... Rf8 {[%clk 0:00:18.9]} 1-0

[Event "Live Chess"]
[Site "Chess.com"]
[Date "2010.12.05"]
[Round "-"]
[White "Jfish834"]
[Black "hipposcottimus"]
[Result "1-0"]
[CurrentPosition "1k5r/pp2R3/8/rNp2p1p/2P3p1/3P4/1P3PPP/4R1K1 b - -"]
[Timezone "UTC"]
[ECO "C55"]
[ECOUrl "https://www.chess.com/openings/Italian-Game-Two-Knights-Modern-Bishops-Opening-4...d5-5.exd5-Nxd5"]
[UTCDate "2010.12.05"]
[UTCTime "04:52:28"]
[WhiteElo "1660"]
[BlackElo "1549"]
[TimeControl "60"]
[Termination "Jfish834 won on time"]
[StartTime "04:52:28"]
[EndDate "2010.12.05"]
[EndTime "04:54:32"]
[Link "https://www.chess.com/game/live/74175030"]

1. e4 {[%clk 0:01:00]} 1... e5 {[%clk 0:01:00]} 2. Nf3 {[%clk 0:00:59.4]} 2... Nc6 {[%clk 0:00:59.7]} 3. Bc4 {[%clk 0:00:58.9]} 3... Nf6 {[%clk 0:00:59.2]} 4. d3 {[%clk 0:00:58.5]} 4... d5 {[%clk 0:00:58.6]} 5. exd5 {[%clk 0:00:57]} 5... Nxd5 {[%clk 0:00:58.3]} 6. Qe2 {[%clk 0:00:56.1]} 6... Nf4 {[%clk 0:00:53.5]} 7. Qxe5+ {[%clk 0:00:53.6]} 7... Ne6 {[%clk 0:00:52.4]} 8. Qe2 {[%clk 0:00:51.7]} 8... Bd7 {[%clk 0:00:51.1]} 9. O-O {[%clk 0:00:50.2]} 9... Bd6 {[%clk 0:00:50.8]} 10. Bg5 {[%clk 0:00:48.1]} 10... f6 {[%clk 0:00:49]} 11. Bxe6 {[%clk 0:00:45.6]} 11... Bxe6 {[%clk 0:00:37.7]} 12. Qxe6+ {[%clk 0:00:43.1]} 12... Be7 {[%clk 0:00:37.2]} 13. Bf4 {[%clk 0:00:39.7]} 13... Nd4 {[%clk 0:00:29]} 14. Nxd4 {[%clk 0:00:37.7]} 14... Qxd4 {[%clk 0:00:27.5]} 15. Re1 {[%clk 0:00:33.9]} 15... Qd7 {[%clk 0:00:18.7]} 16. Qb3 {[%clk 0:00:31.2]} 16... O-O-O {[%clk 0:00:16.8]} 17. Nc3 {[%clk 0:00:30.1]} 17... Bd6 {[%clk 0:00:15.7]} 18. Bxd6 {[%clk 0:00:28.4]} 18... Qxd6 {[%clk 0:00:15.4]} 19. a4 {[%clk 0:00:27.5]} 19... g5 {[%clk 0:00:13.4]} 20. a5 {[%clk 0:00:26.5]} 20... f5 {[%clk 0:00:13.1]} 21. Nb5 {[%clk 0:00:24.6]} 21... Qa6 {[%clk 0:00:11.1]} 22. c4 {[%clk 0:00:20.9]} 22... c6 {[%clk 0:00:10.2]} 23. Nc3 {[%clk 0:00:19.3]} 23... Kb8 {[%clk 0:00:09.4]} 24. Qb4 {[%clk 0:00:18.5]} 24... c5 {[%clk 0:00:08.3]} 25. Qb5 {[%clk 0:00:17.2]} 25... Rd6 {[%clk 0:00:04.2]} 26. Qxa6 {[%clk 0:00:15.7]} 26... Rxa6 {[%clk 0:00:03.8]} 27. Nb5 {[%clk 0:00:14.6]} 27... h5 {[%clk 0:00:02.9]} 28. Rad1 {[%clk 0:00:14]} 28... g4 {[%clk 0:00:02.4]} 29. Re7 {[%clk 0:00:12.9]} 29... Rxa5 {[%clk 0:00:00.1]} 30. Rde1 {[%clk 0:00:11.3]} 1-0

[Event "Live Chess"]
[Site "Chess.com"]
[Date "2010.12.05"]
[Round "-"]
[White "hipposcottimus"]
[Black "vitosha"]
[Result "1-0"]
[CurrentPosition "8/1p4rk/6p1/1n1P3P/4Q3/7P/PP5K/8 b - -"]
[Timezone "UTC"]
[ECO "B07"]
[ECOUrl "https://www.chess.com/openings/Pirc-Defense-Modern-Defense-Geller-System"]
[UTCDate "2010.12.05"]
[UTCTime "04:49:59"]
[WhiteElo "1549"]
[BlackElo "1414"]
[TimeControl "60"]
[Termination "hipposcottimus won on time"]
[StartTime "04:49:59"]
[EndDate "2010.12.05"]
[EndTime "04:52:11"]
[Link "https://www.chess.com/game/live/74174526"]

1. e4 {[%clk 0:01:00]} 1... d6 {[%clk 0:01:00]} 2. Nf3 {[%clk 0:00:59.7]} 2... e6 {[%clk 0:00:59.4]} 3. d4 {[%clk 0:00:59.3]} 3... Be7 {[%clk 0:00:58.8]} 4. c4 {[%clk 0:00:58.9]} 4... Bd7 {[%clk 0:00:58.3]} 5. d5 {[%clk 0:00:58.6]} 5... a6 {[%clk 0:00:57.6]} 6. dxe6 {[%clk 0:00:56.6]} 6... Bxe6 {[%clk 0:00:57]} 7. Nc3 {[%clk 0:00:54.9]} 7... h6 {[%clk 0:00:56.4]} 8. Nd5 {[%clk 0:00:53.8]} 8... Nf6 {[%clk 0:00:55.5]} 9. Bd3 {[%clk 0:00:51.3]} 9... Nxd5 {[%clk 0:00:54.3]} 10. cxd5 {[%clk 0:00:51]} 10... Bd7 {[%clk 0:00:52]} 11. O-O {[%clk 0:00:50.7]} 11... Bg5 {[%clk 0:00:48.3]} 12. Re1 {[%clk 0:00:50.5]} 12... Bxc1 {[%clk 0:00:45.7]} 13. Rxc1 {[%clk 0:00:49.4]} 13... Qe7 {[%clk 0:00:44.6]} 14. e5 {[%clk 0:00:43.2]} 14... Bb5 {[%clk 0:00:43.8]} 15. exd6 {[%clk 0:00:40.7]} 15... cxd6 {[%clk 0:00:36.8]} 16. Rxe7+ {[%clk 0:00:38.3]} 16... Kxe7 {[%clk 0:00:36.2]} 17. Qe2+ {[%clk 0:00:34.2]} 17... Kf8 {[%clk 0:00:35.4]} 18. Bxb5 {[%clk 0:00:32]} 18... axb5 {[%clk 0:00:34.3]} 19. Qxb5 {[%clk 0:00:31.7]} 19... Kg8 {[%clk 0:00:30.6]} 20. Rc8+ {[%clk 0:00:31.2]} 20... Kh7 {[%clk 0:00:29.1]} 21. Qd3+ {[%clk 0:00:30.9]} 21... g6 {[%clk 0:00:28]} 22. Nh4 {[%clk 0:00:29.3]} 22... Rxc8 {[%clk 0:00:26.6]} 23. f4 {[%clk 0:00:22]} 23... Nd7 {[%clk 0:00:25.6]} 24. f5 {[%clk 0:00:20.7]} 24... Rg8 {[%clk 0:00:22.2]} 25. fxg6+ {[%clk 0:00:19]} 25... Rxg6 {[%clk 0:00:20.4]} 26. Nxg6 {[%clk 0:00:17.1]} 26... fxg6 {[%clk 0:00:19.5]} 27. Qg3 {[%clk 0:00:16.9]} 27... Rg8 {[%clk 0:00:17.4]} 28. Qxd6 {[%clk 0:00:16.5]} 28... Nf6 {[%clk 0:00:15.8]} 29. Qe6 {[%clk 0:00:15.6]} 29... Ng4 {[%clk 0:00:13.8]} 30. Qe7+ {[%clk 0:00:14.4]} 30... Rg7 {[%clk 0:00:12.5]} 31. Qe6 {[%clk 0:00:12.4]} 31... h5 {[%clk 0:00:08.1]} 32. h3 {[%clk 0:00:10.8]} 32... Nh6 {[%clk 0:00:06.4]} 33. Kh2 {[%clk 0:00:10.3]} 33... Nf5 {[%clk 0:00:05.3]} 34. g4 {[%clk 0:00:07.7]} 34... Nd4 {[%clk 0:00:04.2]} 35. Qe4 {[%clk 0:00:05.8]} 35... Nb5 {[%clk 0:00:00.5]} 36. gxh5 {[%clk 0:00:05.5]} 1-0

[Event "Live Chess"]
[Site "Chess.com"]
[Date "2010.12.05"]
[Round "-"]
[White "Bigcaptain"]
[Black "hipposcottimus"]
[Result "1-0"]
[CurrentPosition "rn3b1k/ppqb1Qpp/2p1p2r/3pN3/3P1P2/2NB4/PPP3PP/R4RK1 w - -"]
[Timezone "UTC"]
[ECO "B12"]
[ECOUrl "https://www.chess.com/openings/Caro-Kann-Defense-2.d4-d5"]
[UTCDate "2010.12.05"]
[UTCTime "04:20:27"]
[WhiteElo "1271"]
[BlackElo "1549"]
[TimeControl "60+1"]
[Termination "Bigcaptain won by resignation"]
[StartTime "04:20:27"]
[EndDate "2010.12.05"]
[EndTime "04:22:14"]
[Link "https://www.chess.com/game/live/74168879"]

1. d4 {[%clk 0:01:00]} 1... d5 {[%clk 0:01:00]} 2. e4 {[%clk 0:00:59.4]} 2... c6 {[%clk 0:01:00.6]} 3. Nc3 {[%clk 0:00:58.5]} 3... e6 {[%clk 0:00:59.5]} 4. e5 {[%clk 0:00:53.6]} 4... Bb4 {[%clk 0:00:59.1]} 5. Bd2 {[%clk 0:00:52.3]} 5... f6 {[%clk 0:00:58.2]} 6. Nf3 {[%clk 0:00:51.4]} 6... fxe5 {[%clk 0:00:57.5]} 7. Nxe5 {[%clk 0:00:51.4]} 7... Nf6 {[%clk 0:00:58.1]} 8. Bg5 {[%clk 0:00:47.9]} 8... O-O {[%clk 0:00:58.3]} 9. Bd3 {[%clk 0:00:46.4]} 9... Bd6 {[%clk 0:00:53.4]} 10. O-O {[%clk 0:00:38.5]} 10... Qc7 {[%clk 0:00:53.9]} 11. Bxf6 {[%clk 0:00:31]} 11... Rxf6 {[%clk 0:00:52.4]} 12. Qh5 {[%clk 0:00:26.1]} 12... Rh6 {[%clk 0:00:48.5]} 13. Qe8+ {[%clk 0:00:21.1]} 13... Bf8 {[%clk 0:00:46.7]} 14. f4 {[%clk 0:00:16.1]} 14... Bd7 {[%clk 0:00:42]} 15. Qf7+ {[%clk 0:00:13.4]} 15... Kh8 {[%clk 0:00:37.1]} 1-0

[Event "Live Chess"]
[Site "Chess.com"]
[Date "2010.12.05"]
[Round "-"]
[White "hipposcottimus"]
[Black "drh1949"]
[Result "1-0"]
[CurrentPosition "b7/B7/1Pk5/8/6P1/8/5P1P/4R1K1 b - -"]
[Timezone "UTC"]
[ECO "B10"]
[ECOUrl "https://www.chess.com/openings/Caro-Kann-Defense-2.Nf3-d5"]
[UTCDate "2010.12.05"]
[UTCTime "04:02:51"]
[WhiteElo "1562"]
[BlackElo "1432"]
[TimeControl "60"]
[Termination "hipposcottimus won on time"]
[StartTime "04:02:51"]
[EndDate "2010.12.05"]
[EndTime "04:05:02"]
[Link "https://www.chess.com/game/live/74165674"]

1. e4 {[%clk 0:01:00]} 1... c6 {[%clk 0:01:00]} 2. Nf3 {[%clk 0:00:59]} 2... d5 {[%clk 0:00:58.7]} 3. e5 {[%clk 0:00:58.7]} 3... e6 {[%clk 0:00:56.3]} 4. d4 {[%clk 0:00:58.2]} 4... c5 {[%clk 0:00:54.2]} 5. c4 {[%clk 0:00:58]} 5... Bd6 {[%clk 0:00:52.6]} 6. cxd5 {[%clk 0:00:56.5]} 6... Bxe5 {[%clk 0:00:51]} 7. dxe5 {[%clk 0:00:55.4]} 7... Qxd5 {[%clk 0:00:49.5]} 8. Nc3 {[%clk 0:00:51.1]} 8... Qxd1+ {[%clk 0:00:47.3]} 9. Nxd1 {[%clk 0:00:50.8]} 9... Nc6 {[%clk 0:00:46]} 10. Bb5 {[%clk 0:00:50.3]} 10... f6 {[%clk 0:00:44.5]} 11. Bxc6+ {[%clk 0:00:50]} 11... bxc6 {[%clk 0:00:43.8]} 12. exf6 {[%clk 0:00:49.4]} 12... Nxf6 {[%clk 0:00:42.7]} 13. O-O {[%clk 0:00:49.1]} 13... e5 {[%clk 0:00:41.4]} 14. Re1 {[%clk 0:00:48.8]} 14... e4 {[%clk 0:00:40.4]} 15. Nc3 {[%clk 0:00:45.9]} 15... Kf7 {[%clk 0:00:39.2]} 16. Nxe4 {[%clk 0:00:45.6]} 16... Nxe4 {[%clk 0:00:38.2]} 17. Rxe4 {[%clk 0:00:45.4]} 17... c4 {[%clk 0:00:37.3]} 18. Ng5+ {[%clk 0:00:43.4]} 18... Kg6 {[%clk 0:00:35.5]} 19. Rxc4 {[%clk 0:00:43.1]} 19... h6 {[%clk 0:00:32.8]} 20. Rxc6+ {[%clk 0:00:42.6]} 20... Kf5 {[%clk 0:00:28.5]} 21. Nf7 {[%clk 0:00:37.6]} 21... Bb7 {[%clk 0:00:27.3]} 22. Rc5+ {[%clk 0:00:34.7]} 22... Kf6 {[%clk 0:00:24.1]} 23. Nxh8 {[%clk 0:00:34.3]} 23... Rxh8 {[%clk 0:00:21.1]} 24. b3 {[%clk 0:00:30.4]} 24... Re8 {[%clk 0:00:19.5]} 25. Bb2+ {[%clk 0:00:28.7]} 25... Kf7 {[%clk 0:00:17.2]} 26. Rc7+ {[%clk 0:00:27.9]} 26... Re7 {[%clk 0:00:15.8]} 27. Rxe7+ {[%clk 0:00:20.8]} 27... Kxe7 {[%clk 0:00:14.6]} 28. Re1+ {[%clk 0:00:20.3]} 28... Kd6 {[%clk 0:00:12.9]} 29. Bxg7 {[%clk 0:00:19.1]} 29... Kc5 {[%clk 0:00:11.8]} 30. Bxh6 {[%clk 0:00:16.5]} 30... Kb4 {[%clk 0:00:10.5]} 31. Be3 {[%clk 0:00:16.2]} 31... Ka3 {[%clk 0:00:09.3]} 32. Bxa7 {[%clk 0:00:15.9]} 32... Kxa2 {[%clk 0:00:07.9]} 33. b4 {[%clk 0:00:15.4]} 33... Kb3 {[%clk 0:00:06.6]} 34. b5 {[%clk 0:00:15.1]} 34... Kb4 {[%clk 0:00:05.6]} 35. b6 {[%clk 0:00:14.5]} 35... Kb5 {[%clk 0:00:04.7]} 36. Re7 {[%clk 0:00:13.6]} 36... Kc6 {[%clk 0:00:02]} 37. g4 {[%clk 0:00:09.3]} 37... Ba8 {[%clk 0:00:00.2]} 38. Re1 {[%clk 0:00:08.3]} 1-0

[Event "Live Chess"]
[Site "Chess.com"]
[Date "2010.12.05"]
[Round "-"]
[White "hipposcottimus"]
[Black "sanjay007"]
[Result "1-0"]
[CurrentPosition "3rkQ2/2pb4/ppp5/8/4P3/2N5/PPP3PP/R4RK1 b - -"]
[Timezone "UTC"]
[ECO "C40"]
[ECOUrl "https://www.chess.com/openings/Kings-Pawn-Opening-Kings-Knight-Damiano-Defense"]
[UTCDate "2010.12.05"]
[UTCTime "03:59:27"]
[WhiteElo "1557"]
[BlackElo "863"]
[TimeControl "60"]
[Termination "hipposcottimus won by checkmate"]
[StartTime "03:59:27"]
[EndDate "2010.12.05"]
[EndTime "04:01:06"]
[Link "https://www.chess.com/game/live/74165060"]

1. e4 {[%clk 0:01:00]} 1... e5 {[%clk 0:01:00]} 2. Nf3 {[%clk 0:00:59.7]} 2... f6 {[%clk 0:00:58.7]} 3. Bc4 {[%clk 0:00:59.4]} 3... Qe7 {[%clk 0:00:56.6]} 4. d4 {[%clk 0:00:59.1]} 4... Nc6 {[%clk 0:00:54.7]} 5. dxe5 {[%clk 0:00:56.6]} 5... fxe5 {[%clk 0:00:53.6]} 6. Bb5 {[%clk 0:00:54]} 6... a6 {[%clk 0:00:51.4]} 7. Bxc6 {[%clk 0:00:53]} 7... dxc6 {[%clk 0:00:50.4]} 8. Nc3 {[%clk 0:00:52.8]} 8... Nf6 {[%clk 0:00:49.2]} 9. Bg5 {[%clk 0:00:52.4]} 9... h6 {[%clk 0:00:46.3]} 10. Bh4 {[%clk 0:00:50.1]} 10... g5 {[%clk 0:00:44.7]} 11. Nxg5 {[%clk 0:00:49.2]} 11... hxg5 {[%clk 0:00:43.9]} 12. Bxg5 {[%clk 0:00:48.8]} 12... Rg8 {[%clk 0:00:41.6]} 13. Qd2 {[%clk 0:00:43.2]} 13... Qe6 {[%clk 0:00:33.4]} 14. O-O {[%clk 0:00:40.4]} 14... Rxg5 {[%clk 0:00:30.1]} 15. Qxg5 {[%clk 0:00:38.4]} 15... Bd7 {[%clk 0:00:20.4]} 16. f4 {[%clk 0:00:37.5]} 16... Rd8 {[%clk 0:00:19]} 17. fxe5 {[%clk 0:00:34.1]} 17... b6 {[%clk 0:00:16.1]} 18. exf6 {[%clk 0:00:32.6]} 18... Be7 {[%clk 0:00:12.2]} 19. fxe7 {[%clk 0:00:24.8]} 19... Qxe7 {[%clk 0:00:11.4]} 20. Qg8+ {[%clk 0:00:23.2]} 20... Qf8 {[%clk 0:00:09.4]} 21. Qxf8# {[%clk 0:00:22.6]} 1-0